[Event "Titled Tuesday Blitz February 21 Early 2023"]
[White "Todev, Simeon"]
[Black "Petrovic, Aleksa"]
[WhiteFideId "2925133"]
[BlackFideId "967629"]
[WhiteElo "2033"]
[BlackElo "2332"]
[Result "1-0"]
[Round "10"]
[TimeControl "180+2"]
[Date "2023.02.21"]
[WhiteClock "0:00:41"]
[BlackClock "0:00:35"]

1. e4 {[%clk 0:03:00]}  c6 {[%clk 0:02:59]} 2. c4 {[%clk 0:02:59]}  d5 {[%clk 0:02:58]} 3. exd5 {[%clk 0:02:58]}  cxd5 {[%clk 0:02:59]} 4. d4 {[%clk 0:02:59]}  Nf6 {[%clk 0:02:58]} 5. Nf3 {[%clk 0:02:59]}  e6 {[%clk 0:02:52]} 6. Nc3 {[%clk 0:03:00]}  Bb4 {[%clk 0:02:52]} 7. cxd5 {[%clk 0:02:57]}  Nxd5 {[%clk 0:02:51]} 8. Bd2 {[%clk 0:02:55]}  O-O {[%clk 0:02:50]} 9. Bd3 {[%clk 0:02:50]}  Nc6 {[%clk 0:02:49]} 10. O-O {[%clk 0:02:46]}  Be7 {[%clk 0:02:42]} 11. Bb1 {[%clk 0:02:40]}  g6 {[%clk 0:02:29]} 12. Bh6 {[%clk 0:02:38]}  Re8 {[%clk 0:02:20]} 13. Be4 {[%clk 0:02:37]}  Nf6 {[%clk 0:02:11]} 14. Bxc6 {[%clk 0:02:29]}  bxc6 {[%clk 0:02:06]} 15. Ne5 {[%clk 0:02:30]}  Bb7 {[%clk 0:02:01]} 16. Qf3 {[%clk 0:02:31]}  Rc8 {[%clk 0:01:50]} 17. Rfd1 {[%clk 0:02:27]}  Ba8 {[%clk 0:01:49]} 18. Qh3 {[%clk 0:02:12]}  Qa5 {[%clk 0:01:43]} 19. Re1 {[%clk 0:02:07]}  Bb4 {[%clk 0:01:24]} 20. Ne4 {[%clk 0:02:04]}  Nxe4 {[%clk 0:01:13]} 21. Rxe4 {[%clk 0:02:03]}  Qd5 {[%clk 0:00:58]} 22. Rf4 {[%clk 0:01:21]}  f5 {[%clk 0:00:50]} 23. Bg5 {[%clk 0:01:16]}  Rc7 {[%clk 0:00:38]} 24. Bf6 {[%clk 0:00:59]}  Bd2 {[%clk 0:00:35]} 25. Rh4 {[%clk 0:00:51]}  g5 {[%clk 0:00:35]} 26. Rh6 {[%clk 0:00:44]}  c5 {[%clk 0:00:35]} 27. Rg6+ {[%clk 0:00:41]} 1-0


[Site "https://www.chess.com"]

[Event "Titled Tuesday Blitz February 21 Early 2023"]
[White "Fajdetic, Hrvoje"]
[Black "Sai Han Thiha"]
[WhiteFideId "14501945"]
[BlackFideId "13012290"]
[WhiteElo "2151"]
[BlackElo "2070"]
[Result "0-1"]
[Round "10"]
[TimeControl "180+2"]
[Date "2023.02.21"]
[WhiteClock "0:00:02"]
[BlackClock "0:00:15"]

1. f4 {[%clk 0:02:56]}  d5 {[%clk 0:02:55]} 2. Nf3 {[%clk 0:02:56]}  Nf6 {[%clk 0:02:55]} 3. e3 {[%clk 0:02:56]}  Bf5 {[%clk 0:02:56]} 4. c4 {[%clk 0:02:50]}  e6 {[%clk 0:02:45]} 5. Qb3 {[%clk 0:02:48]}  Na6 {[%clk 0:02:22]} 6. Na3 {[%clk 0:01:26]}  Nc5 {[%clk 0:02:19]} 7. Qd1 {[%clk 0:01:12]}  c6 {[%clk 0:02:11]} 8. d4 {[%clk 0:01:09]}  Nce4 {[%clk 0:02:05]} 9. c5 {[%clk 0:01:08]}  Ng4 {[%clk 0:02:05]} 10. Qb3 {[%clk 0:01:01]}  b6 {[%clk 0:02:00]} 11. cxb6 {[%clk 0:00:48]}  Qxb6 {[%clk 0:01:58]} 12. Qxb6 {[%clk 0:00:38]}  axb6 {[%clk 0:01:59]} 13. Ne5 {[%clk 0:00:37]}  Bb4+ {[%clk 0:01:41]} 14. Ke2 {[%clk 0:00:35]}  Nxe5 {[%clk 0:01:26]} 15. fxe5 {[%clk 0:00:08]}  Bg4+ {[%clk 0:01:26]} 16. Kd3 {[%clk 0:00:07]}  Nf2+ {[%clk 0:01:26]} 17. Kc2 {[%clk 0:00:07]}  Bd1+ {[%clk 0:01:07]} 18. Kb1 {[%clk 0:00:06]}  Nxh1 {[%clk 0:00:46]} 19. Nc2 {[%clk 0:00:07]}  Be7 {[%clk 0:00:42]} 20. Bd2 {[%clk 0:00:02]}  Nf2 {[%clk 0:00:26]} 21. Ne1 {[%clk 0:00:03]}  Ne4 {[%clk 0:00:21]} 22. Kc1 {[%clk 0:00:04]}  Bh5 {[%clk 0:00:18]} 23. Bc3 {[%clk 0:00:03]}  f6 {[%clk 0:00:17]} 24. Nd3 {[%clk 0:00:03]}  c5 {[%clk 0:00:15]} 25. Nf4 {[%clk 0:00:03]}  Bf7 {[%clk 0:00:14]} 26. exf6 {[%clk 0:00:03]}  gxf6 {[%clk 0:00:15]} 27. Be1 {[%clk 0:00:02]}  cxd4 {[%clk 0:00:15]} 28. exd4 {[%clk 0:00:03]}  Bd6 {[%clk 0:00:15]} 29. Bb5+ {[%clk 0:00:03]}  Ke7 {[%clk 0:00:15]} 30. Nd3 {[%clk 0:00:04]}  Rhc8+ {[%clk 0:00:15]} 31. Kd1 {[%clk 0:00:03]}  Bh5+ {[%clk 0:00:15]} 32. g4 {[%clk 0:00:02]}  Bxg4# {[%clk 0:00:15]} 0-1


[Site "https://www.chess.com"]

[Event "Titled Tuesday Blitz February 21 Early 2023"]
[White "Womacka, Mathias"]
[Black "Deev, Andrei"]
[WhiteFideId "4611390"]
[BlackFideId "4102690"]
[WhiteElo "2396"]
[BlackElo "2390"]
[Result "0-1"]
[Round "10"]
[TimeControl "180+2"]
[Date "2023.02.21"]
[WhiteClock "0:00:34"]
[BlackClock "0:00:12"]

1. e4 {[%clk 0:03:00]}  d6 {[%clk 0:03:00]} 2. d4 {[%clk 0:02:59]}  Nf6 {[%clk 0:03:01]} 3. Nc3 {[%clk 0:02:59]}  c6 {[%clk 0:03:02]} 4. f4 {[%clk 0:02:59]}  Qa5 {[%clk 0:03:01]} 5. Bd3 {[%clk 0:02:58]}  e5 {[%clk 0:03:00]} 6. Nf3 {[%clk 0:02:58]}  Bg4 {[%clk 0:03:00]} 7. Be3 {[%clk 0:02:57]}  Nbd7 {[%clk 0:02:59]} 8. O-O {[%clk 0:02:56]}  Be7 {[%clk 0:02:59]} 9. Qe1 {[%clk 0:02:51]}  O-O {[%clk 0:02:53]} 10. Nd5 {[%clk 0:02:41]}  Qd8 {[%clk 0:02:50]} 11. Nxe7+ {[%clk 0:02:41]}  Qxe7 {[%clk 0:02:51]} 12. Qh4 {[%clk 0:02:31]}  Bxf3 {[%clk 0:01:58]} 13. Rxf3 {[%clk 0:02:32]}  Nd5 {[%clk 0:01:55]} 14. Qxe7 {[%clk 0:02:07]}  Nxe7 {[%clk 0:01:55]} 15. Rd1 {[%clk 0:01:54]}  exd4 {[%clk 0:01:40]} 16. Bxd4 {[%clk 0:01:53]}  Nb6 {[%clk 0:01:34]} 17. Bf1 {[%clk 0:01:42]}  Rad8 {[%clk 0:01:29]} 18. Rb3 {[%clk 0:01:11]}  Nec8 {[%clk 0:01:14]} 19. a4 {[%clk 0:01:10]}  Rd7 {[%clk 0:00:51]} 20. a5 {[%clk 0:01:09]}  Na8 {[%clk 0:00:46]} 21. Bd3 {[%clk 0:00:58]}  Re8 {[%clk 0:00:42]} 22. Ra1 {[%clk 0:00:57]}  a6 {[%clk 0:00:33]} 23. Ra4 {[%clk 0:00:54]}  Ree7 {[%clk 0:00:25]} 24. Bf2 {[%clk 0:00:51]}  f6 {[%clk 0:00:23]} 25. g3 {[%clk 0:00:47]}  Kf7 {[%clk 0:00:22]} 26. Kg2 {[%clk 0:00:48]}  h6 {[%clk 0:00:20]} 27. Kf3 {[%clk 0:00:48]}  Kf8 {[%clk 0:00:16]} 28. h4 {[%clk 0:00:47]}  Ke8 {[%clk 0:00:15]} 29. h5 {[%clk 0:00:47]}  Kd8 {[%clk 0:00:14]} 30. Bf1 {[%clk 0:00:43]}  Kc7 {[%clk 0:00:13]} 31. Bh3 {[%clk 0:00:43]}  Rd8 {[%clk 0:00:13]} 32. Rd4 {[%clk 0:00:34]}  Kb8 {[%clk 0:00:12]} 0-1


[Site "https://www.chess.com"]

[Event "Titled Tuesday Blitz February 21 Early 2023"]
[White "Sanchez, Robert"]
[Black "Kotepalli, Sai Nirupama"]
[WhiteFideId "2034360"]
[BlackFideId "5039444"]
[WhiteElo "1966"]
[BlackElo "1910"]
[Result "1-0"]
[Round "10"]
[TimeControl "180+2"]
[Date "2023.02.21"]
[WhiteClock "0:00:14"]
[BlackClock "0:00:20"]

1. e4 {[%clk 0:03:00]}  c5 {[%clk 0:02:59]} 2. Nf3 {[%clk 0:03:00]}  e6 {[%clk 0:02:59]} 3. d4 {[%clk 0:02:59]}  cxd4 {[%clk 0:02:58]} 4. Nxd4 {[%clk 0:03:00]}  Nf6 {[%clk 0:02:59]} 5. Nc3 {[%clk 0:03:00]}  Nc6 {[%clk 0:02:59]} 6. Ndb5 {[%clk 0:02:58]}  Bb4 {[%clk 0:02:58]} 7. a3 {[%clk 0:02:58]}  Bxc3+ {[%clk 0:02:57]} 8. Nxc3 {[%clk 0:02:59]}  d5 {[%clk 0:02:57]} 9. exd5 {[%clk 0:03:00]}  exd5 {[%clk 0:02:58]} 10. Bd3 {[%clk 0:03:00]}  d4 {[%clk 0:02:57]} 11. Ne2 {[%clk 0:02:59]}  O-O {[%clk 0:02:53]} 12. O-O {[%clk 0:02:49]}  Qd5 {[%clk 0:02:53]} 13. h3 {[%clk 0:02:46]}  a6 {[%clk 0:02:49]} 14. Bd2 {[%clk 0:02:45]}  Bf5 {[%clk 0:02:48]} 15. Bf4 {[%clk 0:02:30]}  Rad8 {[%clk 0:02:38]} 16. Ng3 {[%clk 0:02:25]}  Bg6 {[%clk 0:02:34]} 17. Re1 {[%clk 0:02:16]}  Rfe8 {[%clk 0:02:29]} 18. Qd2 {[%clk 0:02:15]}  Ne5 {[%clk 0:02:23]} 19. Bxe5 {[%clk 0:01:56]}  Rxe5 {[%clk 0:02:22]} 20. Rxe5 {[%clk 0:01:56]}  Qxe5 {[%clk 0:02:21]} 21. Re1 {[%clk 0:01:56]}  Qd5 {[%clk 0:02:17]} 22. Bxg6 {[%clk 0:01:54]}  hxg6 {[%clk 0:02:17]} 23. Qf4 {[%clk 0:01:52]}  Rc8 {[%clk 0:02:06]} 24. Rd1 {[%clk 0:01:42]}  Rc4 {[%clk 0:01:55]} 25. c3 {[%clk 0:01:41]}  dxc3 {[%clk 0:01:52]} 26. Qb8+ {[%clk 0:01:41]}  Kh7 {[%clk 0:01:49]} 27. Rxd5 {[%clk 0:01:41]}  cxb2 {[%clk 0:01:42]} 28. Rd8 {[%clk 0:01:38]}  b1=Q+ {[%clk 0:01:41]} 29. Kh2 {[%clk 0:01:38]}  g5 {[%clk 0:01:35]} 30. Rh8+ {[%clk 0:01:27]}  Kg6 {[%clk 0:01:35]} 31. Qe5 {[%clk 0:01:04]}  Rh4 {[%clk 0:01:24]} 32. Rxh4 {[%clk 0:00:52]}  gxh4 {[%clk 0:01:25]} 33. Ne2 {[%clk 0:00:52]}  Nh5 {[%clk 0:01:18]} 34. Nd4 {[%clk 0:00:45]}  Qd3 {[%clk 0:01:09]} 35. Nf3 {[%clk 0:00:45]}  f6 {[%clk 0:00:48]} 36. Nxh4+ {[%clk 0:00:34]}  Kh6 {[%clk 0:00:47]} 37. Qe8 {[%clk 0:00:32]}  g5 {[%clk 0:00:34]} 38. Qh8+ {[%clk 0:00:24]}  Qh7 {[%clk 0:00:33]} 39. Qf8+ {[%clk 0:00:21]}  Ng7 {[%clk 0:00:29]} 40. Qxf6+ {[%clk 0:00:20]}  Kh5 {[%clk 0:00:28]} 41. Nf3 {[%clk 0:00:18]}  Qg6 {[%clk 0:00:27]} 42. g4+ {[%clk 0:00:18]}  Kh6 {[%clk 0:00:27]} 43. Qf8 {[%clk 0:00:17]}  Qe4 {[%clk 0:00:22]} 44. Qh8+ {[%clk 0:00:14]}  Kg6 {[%clk 0:00:22]} 45. Qh7+ {[%clk 0:00:14]}  Kxh7 {[%clk 0:00:20]} 46. Nxg5+ {[%clk 0:00:14]} 1-0


[Site "https://www.chess.com"]

[Event "Titled Tuesday Blitz February 21 Early 2023"]
[White "Begunov, Konstantin"]
[Black "Simonovic, Miroslav"]
[WhiteFideId "4118510"]
[BlackFideId "919152"]
[WhiteElo "2325"]
[BlackElo "2082"]
[Result "0-1"]
[Round "10"]
[TimeControl "180+2"]
[Date "2023.02.21"]
[WhiteClock "0:00:11"]
[BlackClock "0:00:11"]

1. d4 {[%clk 0:03:00]}  Nf6 {[%clk 0:02:59]} 2. c4 {[%clk 0:03:00]}  c5 {[%clk 0:03:00]} 3. Nf3 {[%clk 0:03:00]}  b6 {[%clk 0:03:00]} 4. dxc5 {[%clk 0:02:58]}  bxc5 {[%clk 0:03:00]} 5. g3 {[%clk 0:02:58]}  Bb7 {[%clk 0:02:59]} 6. Bg2 {[%clk 0:02:59]}  g6 {[%clk 0:03:00]} 7. O-O {[%clk 0:02:59]}  Bg7 {[%clk 0:03:00]} 8. Nc3 {[%clk 0:02:59]}  O-O {[%clk 0:03:00]} 9. Qc2 {[%clk 0:02:59]}  d6 {[%clk 0:02:59]} 10. Rd1 {[%clk 0:02:59]}  Nbd7 {[%clk 0:02:59]} 11. b3 {[%clk 0:02:59]}  Ne4 {[%clk 0:02:49]} 12. Bb2 {[%clk 0:02:58]}  Nxc3 {[%clk 0:02:37]} 13. Bxc3 {[%clk 0:02:59]}  Qc7 {[%clk 0:02:34]} 14. h4 {[%clk 0:02:49]}  h6 {[%clk 0:02:28]} 15. Rd2 {[%clk 0:02:36]}  Rab8 {[%clk 0:02:10]} 16. Rad1 {[%clk 0:02:35]}  Bxf3 {[%clk 0:02:10]} 17. Bxf3 {[%clk 0:02:34]}  Ne5 {[%clk 0:02:10]} 18. Bd5 {[%clk 0:02:30]}  Kh7 {[%clk 0:02:03]} 19. f4 {[%clk 0:02:19]}  Nc6 {[%clk 0:02:01]} 20. Bxg7 {[%clk 0:02:16]}  Kxg7 {[%clk 0:02:02]} 21. e3 {[%clk 0:02:11]}  Rbd8 {[%clk 0:01:57]} 22. h5 {[%clk 0:02:06]}  e6 {[%clk 0:01:38]} 23. Qc3+ {[%clk 0:01:26]}  Kh7 {[%clk 0:01:29]} 24. hxg6+ {[%clk 0:01:15]}  fxg6 {[%clk 0:01:29]} 25. Bxe6 {[%clk 0:01:11]}  Qe7 {[%clk 0:01:13]} 26. Bd5 {[%clk 0:01:05]}  Nb4 {[%clk 0:01:12]} 27. Bf3 {[%clk 0:01:01]}  Rfe8 {[%clk 0:01:04]} 28. Kf2 {[%clk 0:00:54]}  Qe6 {[%clk 0:00:54]} 29. a3 {[%clk 0:00:50]}  Na6 {[%clk 0:00:46]} 30. Bc6 {[%clk 0:00:35]}  Re7 {[%clk 0:00:44]} 31. Bd5 {[%clk 0:00:27]}  Qf5 {[%clk 0:00:33]} 32. Qa5 {[%clk 0:00:19]}  Nc7 {[%clk 0:00:32]} 33. Bf3 {[%clk 0:00:19]}  Ne6 {[%clk 0:00:19]} 34. e4 {[%clk 0:00:16]}  Qh3 {[%clk 0:00:18]} 35. Bg2 {[%clk 0:00:16]}  Qh5 {[%clk 0:00:16]} 36. e5 {[%clk 0:00:16]}  Qf5 {[%clk 0:00:14]} 37. exd6 {[%clk 0:00:14]}  Nxf4 {[%clk 0:00:13]} 38. Qxd8 {[%clk 0:00:11]}  Nh3# {[%clk 0:00:11]} 0-1


[Site "https://www.chess.com"]

[Event "Titled Tuesday Blitz February 21 Early 2023"]
[White "Dias, Joao Batista"]
[Black "Torres Boch, Jose Francisco"]
[WhiteFideId "2108240"]
[BlackFideId "2278383"]
[WhiteElo "1796"]
[BlackElo "2180"]
[Result "0-1"]
[Round "10"]
[TimeControl "180+2"]
[Date "2023.02.21"]
[WhiteClock "0:00:16"]
[BlackClock "0:01:11"]

1. e4 {[%clk 0:03:00]}  c5 {[%clk 0:02:58]} 2. Nf3 {[%clk 0:03:00]}  d6 {[%clk 0:02:59]} 3. d4 {[%clk 0:03:00]}  cxd4 {[%clk 0:03:00]} 4. Nxd4 {[%clk 0:02:59]}  Nf6 {[%clk 0:03:00]} 5. Nc3 {[%clk 0:02:58]}  a6 {[%clk 0:03:01]} 6. Be3 {[%clk 0:02:58]}  e5 {[%clk 0:03:02]} 7. Nb3 {[%clk 0:02:57]}  Be6 {[%clk 0:03:02]} 8. Qd2 {[%clk 0:02:56]}  Be7 {[%clk 0:03:00]} 9. f3 {[%clk 0:02:55]}  h5 {[%clk 0:03:00]} 10. Be2 {[%clk 0:02:53]}  Nbd7 {[%clk 0:03:00]} 11. Rd1 {[%clk 0:02:50]}  Rc8 {[%clk 0:03:00]} 12. O-O {[%clk 0:02:49]}  b5 {[%clk 0:02:59]} 13. Qe1 {[%clk 0:02:42]}  h4 {[%clk 0:02:56]} 14. a3 {[%clk 0:02:37]}  h3 {[%clk 0:02:49]} 15. g4 {[%clk 0:02:36]}  Nb6 {[%clk 0:02:45]} 16. Qf2 {[%clk 0:02:29]}  Nfd7 {[%clk 0:02:44]} 17. Rd2 {[%clk 0:02:26]}  Bh4 {[%clk 0:02:44]} 18. Bxb6 {[%clk 0:02:19]}  Bxf2+ {[%clk 0:02:43]} 19. Bxf2 {[%clk 0:02:18]}  O-O {[%clk 0:01:57]} 20. Rxd6 {[%clk 0:02:16]}  Qg5 {[%clk 0:01:34]} 21. Rfd1 {[%clk 0:01:51]}  Nf6 {[%clk 0:01:34]} 22. Nc5 {[%clk 0:01:32]}  Bxg4 {[%clk 0:01:32]} 23. fxg4 {[%clk 0:01:21]}  Nxg4 {[%clk 0:01:33]} 24. Bxg4 {[%clk 0:00:45]}  Qxg4+ {[%clk 0:01:34]} 25. Kf1 {[%clk 0:00:45]}  Qg2+ {[%clk 0:01:33]} 26. Ke2 {[%clk 0:00:45]}  Rxc5 {[%clk 0:01:33]} 27. R1d2 {[%clk 0:00:33]}  Rxc3 {[%clk 0:01:28]} 28. bxc3 {[%clk 0:00:32]}  Qxe4+ {[%clk 0:01:28]} 29. Kd1 {[%clk 0:00:19]}  Qh1+ {[%clk 0:01:21]} 30. Ke2 {[%clk 0:00:19]}  Qxh2 {[%clk 0:01:21]} 31. Kd3 {[%clk 0:00:18]}  e4+ {[%clk 0:01:17]} 32. Kxe4 {[%clk 0:00:17]}  Re8+ {[%clk 0:01:17]} 33. Kd5 {[%clk 0:00:17]}  Qg2+ {[%clk 0:01:13]} 34. Kc5 {[%clk 0:00:17]}  h2 {[%clk 0:01:12]} 35. Bd4 {[%clk 0:00:16]}  Qxd2 {[%clk 0:01:11]} 0-1


[Site "https://www.chess.com"]

[Event "Titled Tuesday Blitz February 21 Early 2023"]
[White "kiwibobo"]
[Black "Filgueira, Hernan"]
[BlackFideId "101770"]
[WhiteElo "2140"]
[BlackElo "2283"]
[Result "0-1"]
[Round "10"]
[TimeControl "180+2"]
[Date "2023.02.21"]
[WhiteClock "0:00:01"]
[BlackClock "0:00:15"]

1. e4 {[%clk 0:03:00]}  d6 {[%clk 0:02:59]} 2. d4 {[%clk 0:02:59]}  Nf6 {[%clk 0:03:00]} 3. Nc3 {[%clk 0:02:57]}  g6 {[%clk 0:03:00]} 4. Nf3 {[%clk 0:02:57]}  Bg7 {[%clk 0:03:00]} 5. Be2 {[%clk 0:02:58]}  O-O {[%clk 0:03:00]} 6. O-O {[%clk 0:02:59]}  c6 {[%clk 0:03:00]} 7. h3 {[%clk 0:02:57]}  Qc7 {[%clk 0:02:59]} 8. a4 {[%clk 0:02:56]}  e5 {[%clk 0:02:58]} 9. Re1 {[%clk 0:02:56]}  Re8 {[%clk 0:02:57]} 10. Bf1 {[%clk 0:02:57]}  Nbd7 {[%clk 0:02:55]} 11. Qe2 {[%clk 0:02:57]}  exd4 {[%clk 0:02:48]} 12. Nxd4 {[%clk 0:02:55]}  Nc5 {[%clk 0:02:49]} 13. Qf3 {[%clk 0:02:16]}  a5 {[%clk 0:02:06]} 14. Bg5 {[%clk 0:02:12]}  Nfd7 {[%clk 0:01:57]} 15. Rad1 {[%clk 0:02:00]}  Bxd4 {[%clk 0:01:52]} 16. Rxd4 {[%clk 0:01:56]}  Ne6 {[%clk 0:01:52]} 17. Be3 {[%clk 0:01:40]}  Nxd4 {[%clk 0:01:51]} 18. Bxd4 {[%clk 0:01:41]}  Ne5 {[%clk 0:01:47]} 19. Qg3 {[%clk 0:01:37]}  Qe7 {[%clk 0:01:38]} 20. f4 {[%clk 0:01:36]}  Nd7 {[%clk 0:01:37]} 21. Bc4 {[%clk 0:01:27]}  d5 {[%clk 0:01:17]} 22. Bb3 {[%clk 0:01:15]}  Nc5 {[%clk 0:01:13]} 23. Bxd5 {[%clk 0:00:58]}  Be6 {[%clk 0:01:00]} 24. Bxe6 {[%clk 0:00:52]}  Nxe6 {[%clk 0:00:59]} 25. Be3 {[%clk 0:00:47]}  Rad8 {[%clk 0:00:32]} 26. Bb6 {[%clk 0:00:38]}  Rd2 {[%clk 0:00:28]} 27. Bxa5 {[%clk 0:00:27]}  Qc5+ {[%clk 0:00:25]} 28. Qe3 {[%clk 0:00:25]}  Rxc2 {[%clk 0:00:24]} 29. Qxc5 {[%clk 0:00:16]}  Nxc5 {[%clk 0:00:24]} 30. Bb6 {[%clk 0:00:09]}  Nd3 {[%clk 0:00:24]} 31. Re3 {[%clk 0:00:07]}  Nxb2 {[%clk 0:00:24]} 32. Bd4 {[%clk 0:00:07]}  Nc4 {[%clk 0:00:23]} 33. Re1 {[%clk 0:00:06]}  c5 {[%clk 0:00:21]} 34. Bf6 {[%clk 0:00:06]}  Nd6 {[%clk 0:00:19]} 35. Nd5 {[%clk 0:00:05]}  Nxe4 {[%clk 0:00:17]} 36. Ne7+ {[%clk 0:00:06]}  Rxe7 {[%clk 0:00:17]} 37. Bxe7 {[%clk 0:00:06]}  f5 {[%clk 0:00:18]} 38. Rd1 {[%clk 0:00:04]}  Kf7 {[%clk 0:00:18]} 39. Bd6 {[%clk 0:00:03]}  Ke6 {[%clk 0:00:17]} 40. Be5 {[%clk 0:00:04]}  Rc4 {[%clk 0:00:16]} 41. Kh2 {[%clk 0:00:04]}  Rxa4 {[%clk 0:00:16]} 42. Rd8 {[%clk 0:00:04]}  g5 {[%clk 0:00:15]} 43. Re8+ {[%clk 0:00:05]}  Kd7 {[%clk 0:00:15]} 44. Rh8 {[%clk 0:00:05]}  gxf4 {[%clk 0:00:15]} 45. Rxh7+ {[%clk 0:00:06]}  Ke6 {[%clk 0:00:16]} 46. Bxf4 {[%clk 0:00:06]}  c4 {[%clk 0:00:16]} 47. Rh6+ {[%clk 0:00:07]}  Kd5 {[%clk 0:00:15]} 48. Rh7 {[%clk 0:00:07]}  c3 {[%clk 0:00:16]} 49. Rc7 {[%clk 0:00:08]}  b5 {[%clk 0:00:15]} 50. h4 {[%clk 0:00:08]}  b4 {[%clk 0:00:16]} 51. h5 {[%clk 0:00:09]}  Ra8 {[%clk 0:00:16]} 52. h6 {[%clk 0:00:09]}  Rh8 {[%clk 0:00:16]} 53. Rb7 {[%clk 0:00:09]}  Kc4 {[%clk 0:00:16]} 54. h7 {[%clk 0:00:09]}  Kb3 {[%clk 0:00:17]} 55. Be5 {[%clk 0:00:10]}  Rxh7+ {[%clk 0:00:17]} 56. Rxh7 {[%clk 0:00:10]}  c2 {[%clk 0:00:18]} 57. Rc7 {[%clk 0:00:09]}  Nc3 {[%clk 0:00:17]} 58. Bf4 {[%clk 0:00:09]}  Nd5 {[%clk 0:00:16]} 59. Rxc2 {[%clk 0:00:06]}  Kxc2 {[%clk 0:00:15]} 60. Be5 {[%clk 0:00:06]}  Nc3 {[%clk 0:00:15]} 61. g4 {[%clk 0:00:06]}  b3 {[%clk 0:00:15]} 62. gxf5 {[%clk 0:00:04]}  b2 {[%clk 0:00:16]} 63. f6 {[%clk 0:00:02]}  b1=Q {[%clk 0:00:16]} 64. f7 {[%clk 0:00:03]}  Qf1 {[%clk 0:00:16]} 65. Bxc3 {[%clk 0:00:01]}  Kxc3 {[%clk 0:00:15]} 0-1


[Site "https://www.chess.com"]

[Event "Titled Tuesday Blitz February 21 Early 2023"]
[White "Valle Maytin, Luis Enrique"]
[Black "Kiselev, Pavel"]
[WhiteFideId "3503666"]
[BlackFideId "4191102"]
[WhiteElo "2241"]
[BlackElo "2245"]
[Result "1-0"]
[Round "10"]
[TimeControl "180+2"]
[Date "2023.02.21"]
[WhiteClock "0:00:03"]
[BlackClock "0:00:02"]

1. e4 {[%clk 0:03:00]}  c5 {[%clk 0:02:59]} 2. Nf3 {[%clk 0:02:59]}  Nc6 {[%clk 0:03:00]} 3. Bb5 {[%clk 0:03:00]}  g6 {[%clk 0:02:59]} 4. O-O {[%clk 0:02:59]}  Bg7 {[%clk 0:02:59]} 5. Re1 {[%clk 0:02:56]}  Nf6 {[%clk 0:02:59]} 6. e5 {[%clk 0:02:54]}  Nd5 {[%clk 0:02:59]} 7. c3 {[%clk 0:02:50]}  O-O {[%clk 0:02:57]} 8. d4 {[%clk 0:02:49]}  cxd4 {[%clk 0:02:56]} 9. cxd4 {[%clk 0:02:50]}  d6 {[%clk 0:02:51]} 10. exd6 {[%clk 0:02:34]}  Qxd6 {[%clk 0:02:52]} 11. Nc3 {[%clk 0:02:34]}  Nc7 {[%clk 0:02:29]} 12. Bxc6 {[%clk 0:02:21]}  bxc6 {[%clk 0:02:30]} 13. Ne4 {[%clk 0:02:17]}  Qd5 {[%clk 0:02:19]} 14. Nc3 {[%clk 0:02:16]}  Qd6 {[%clk 0:02:17]} 15. Ne4 {[%clk 0:02:08]}  Qd8 {[%clk 0:02:10]} 16. Bf4 {[%clk 0:02:03]}  Nd5 {[%clk 0:02:08]} 17. Bg3 {[%clk 0:02:01]}  a5 {[%clk 0:01:45]} 18. h3 {[%clk 0:02:00]}  a4 {[%clk 0:01:44]} 19. Rc1 {[%clk 0:01:58]}  Qb6 {[%clk 0:01:34]} 20. Qc2 {[%clk 0:01:49]}  Nb4 {[%clk 0:01:30]} 21. Qd2 {[%clk 0:00:49]}  Ba6 {[%clk 0:01:24]} 22. Nc5 {[%clk 0:00:47]}  e6 {[%clk 0:01:11]} 23. a3 {[%clk 0:00:36]}  Nd5 {[%clk 0:01:08]} 24. Nd7 {[%clk 0:00:35]}  Qb3 {[%clk 0:01:01]} 25. Nxf8 {[%clk 0:00:28]}  Rxf8 {[%clk 0:01:02]} 26. Rxc6 {[%clk 0:00:23]}  Bb5 {[%clk 0:01:00]} 27. Rc5 {[%clk 0:00:20]}  Bd3 {[%clk 0:00:26]} 28. Rec1 {[%clk 0:00:19]}  h6 {[%clk 0:00:23]} 29. Rc8 {[%clk 0:00:18]}  Kh7 {[%clk 0:00:20]} 30. Rxf8 {[%clk 0:00:18]}  Bxf8 {[%clk 0:00:21]} 31. Rc8 {[%clk 0:00:18]}  Bg7 {[%clk 0:00:21]} 32. Be5 {[%clk 0:00:16]}  Nf6 {[%clk 0:00:18]} 33. Rc7 {[%clk 0:00:11]}  Kg8 {[%clk 0:00:11]} 34. Bxf6 {[%clk 0:00:11]}  Bxf6 {[%clk 0:00:11]} 35. Qxh6 {[%clk 0:00:12]}  Ba6 {[%clk 0:00:07]} 36. Qc1 {[%clk 0:00:10]}  Kg7 {[%clk 0:00:05]} 37. Rc3 {[%clk 0:00:10]}  Qb5 {[%clk 0:00:05]} 38. Rc5 {[%clk 0:00:06]}  Qe2 {[%clk 0:00:05]} 39. Rc2 {[%clk 0:00:06]}  Qb5 {[%clk 0:00:05]} 40. Rc6 {[%clk 0:00:05]}  Qe2 {[%clk 0:00:04]} 41. Rc2 {[%clk 0:00:03]}  Qb5 {[%clk 0:00:05]} 42. Rc3 {[%clk 0:00:04]}  Bb7 {[%clk 0:00:04]} 43. Qe3 {[%clk 0:00:03]}  Qb6 {[%clk 0:00:03]} 44. Ne5 {[%clk 0:00:04]}  Bd5 {[%clk 0:00:02]} 45. Qf4 {[%clk 0:00:03]}  Qd8 {[%clk 0:00:02]} 46. Rg3 {[%clk 0:00:03]}  Qe7 {[%clk 0:00:02]} 47. h4 {[%clk 0:00:03]} 1-0


[Site "https://www.chess.com"]